bitfinex-derivatives/quotes_ETHF0:USTF0_20230402
["timestamp","ask_amount","ask_price","bid_price","bid_amount"]
[1680434822653,24.59760425,1819.1,1819.0,0.57617694]
[1680434824449,23.44455549,1819.1,1819.0,0.57617694]
[1680434826354,24.30884027,1819.1,1819.0,0.57617694]
[1680434826555,24.30884027,1819.1,1818.9,1.44059402]
[1680434826756,0.57608281,1819.0,1818.9,1.44059402]
[1680434827055,1.57608281,1819.0,1818.9,1.44059402]
[1680434827256,0.57608281,1819.0,1818.9,7.75272678]
[1680434827658,23.97608281,1819.0,1818.9,7.75272678]
[1680434827860,23.97608281,1819.0,1818.9,6.8883097]
[1680434837462,24.06482359,1819.0,1818.9,6.8883097]
[1680434840670,23.48874078,1819.0,1818.9,6.8883097]
[1680434842576,0.08874078,1819.0,1818.9,7.75272678]
[1680434842869,0.08874078,1819.0,1818.9,7.17654984]
[1680434846879,0.08874078,1819.0,1818.9,10.6730925]
[1680434848579,0.08874078,1819.0,1818.9,11.06765393]
[1680434849078,0.08874078,1819.0,1818.9,11.06767649]
[1680434849275,0.08874078,1819.0,1818.9,9.91451675]
[1680434849468,0.08874078,1819.0,1818.9,11.0658293]
[1680434850174,0.08874078,1819.0,1818.9,9.91451675]
[1680434850576,0.08874078,1819.0,1818.9,11.35684323]
[1680434857573,0.08874078,1819.0,1818.9,9.91451675]
[1680434861884,0.08874078,1819.0,1818.9,7.85877687]
[1680434866285,0.08874078,1819.0,1818.9,7.46419288]
[1680434866479,0.08874078,1819.0,1818.9,7.85905961]
[1680434866988,0.08874078,1819.0,1818.9,7.85905888]
[1680434872091,0.08874078,1819.0,1818.9,7.46419288]
[1680434876494,0.08874078,1819.0,1818.9,7.85920542]
[1680434879604,0.08874078,1819.0,1818.9,7.46419288]
[1680434879898,0.66482359,1819.0,1818.9,7.46419288]
[1680434883700,0.66482359,1819.0,1818.9,7.85931808]
[1680434889004,0.66482359,1819.0,1818.9,7.86051981]
[1680434889195,0.66482359,1819.0,1818.9,6.70725796]
[1680434889596,0.66482359,1819.0,1818.9,7.86052068]
[1680434889797,0.66482359,1819.0,1818.9,6.70725796]
[1680434900500,0.66482359,1819.0,1818.9,8.14958444]
[1680434910410,1.52910837,1819.0,1818.9,8.14958444]
[1680434919011,0.95302556,1819.0,1818.9,8.14958444]
[1680434920618,24.35302556,1819.0,1818.9,8.14958444]
[1680434930430,0.95302556,1819.0,1818.9,8.14958444]
[1680434930636,5.73113694,1819.0,1818.9,0.86567198]
[1680434930928,29.20855594,1819.0,1818.8,0.57714478]
[1680434931137,2.15155862,1818.9,1818.8,0.57714478]
[1680434932843,2.15155862,1818.9,1818.7,0.57714478]
[1680434933045,5.07103146,1818.8,1818.7,0.57714478]
[1680434935946,27.47103146,1818.8,1818.7,0.57714478]
[1680434936843,27.18294898,1818.8,1818.7,0.57714478]
[1680434937342,28.04618044,1818.8,1818.6,1.44281676]
[1680434938045,0.15763936,1818.7,1818.6,1.44281676]
[1680434938344,1.15763936,1818.7,1818.6,1.44281676]
[1680434938543,0.15763936,1818.7,1818.6,1.44281676]
[1680434938738,0.15763936,1818.7,1818.6,0.57714478]
[1680434938937,23.55763936,1818.7,1818.6,0.57714478]
[1680434949651,23.55763936,1818.7,1818.5,0.57714478]
[1680434950147,0.15763936,1818.7,1818.5,0.57714478]
[1680434950453,23.4,1818.6,1818.5,0.57714478]
[1680434950949,23.55765756,1818.6,1818.5,0.57714478]
[1680434959859,23.55765756,1818.6,1818.5,1.44281676]
[1680434962658,23.55765756,1818.6,1818.5,0.86567198]
[1680434970763,23.55765756,1818.6,1818.4,4.36198234]
[1680434971170,0.15765756,1818.6,1818.4,4.36198234]
[1680434971667,23.4,1818.5,1818.4,4.36198234]
[1680434971866,23.4,1818.5,1818.4,4.75780211]
[1680434972069,23.55768787,1818.5,1818.4,3.60361977]
[1680434972772,23.55768787,1818.5,1818.4,5.04594625]
[1680434974773,23.55768787,1818.5,1818.4,3.60361977]
[1680434989284,24.13283685,1818.5,1818.4,3.60361977]
[1680434997186,0.73283685,1818.5,1818.4,3.60361977]
[1680434998188,24.13283685,1818.5,1818.4,3.60361977]
[1680434999294,24.13283685,1818.5,1818.4,5.04649095]
[1680435015996,0.73283685,1818.5,1818.4,5.04649095]
[1680435023405,4.64996221,1818.8,1818.4,5.04649095]
[1680435023606,4.64996221,1818.8,1818.3,1.0]
[1680435023607,1.15248161,1818.8,1818.7,1.15411593]
[1680435023910,23.4,1818.8,1818.7,1.66086865]
[1680435031320,23.52011384,1818.8,1818.7,1.66086865]
[1680435032322,23.52011384,1818.8,1818.7,0.50675272]
[1680435032825,23.52011384,1818.8,1818.7,3.40060012]
[1680435033123,23.52011384,1818.8,1818.7,1.95772894]
[1680435033617,0.12011384,1818.8,1818.7,3.39823652]
[1680435034120,1.0,1819.0,1818.7,2.39823652]
[1680435034321,23.4,1819.1,1818.9,0.86429431]
[1680435034521,23.4,1819.1,1819.0,0.57619555]
[1680435036333,26.6078,1819.1,1818.9,0.57619555]
[1680435037627,27.76028161,1819.1,1818.9,0.57619555]
[1680435037826,26.6078,1819.1,1818.9,0.57619555]
[1680435039827,26.6078,1819.1,1818.8,1.44048986]
[1680435043930,26.6078,1819.1,1818.8,0.57619555]
[1680435044728,1.0,1819.0,1818.8,0.57619555]
[1680435045328,1.0,1819.0,1818.8,1.44048986]
[1680435045628,26.6078,1819.1,1818.8,0.57619555]
[1680435045826,1.0,1819.0,1818.8,0.57619555]
[1680435047633,26.6078,1819.1,1818.8,0.57619555]
[1680435048236,0.11754553,1819.0,1818.8,0.57619555]
[1680435048532,1.11754553,1819.0,1818.8,0.57619555]
[1680435055236,1.11754553,1819.0,1818.8,1.44048986]
[1680435055839,0.11754553,1819.0,1818.8,1.44048986]
[1680435056437,1.11754553,1819.0,1818.8,1.44048986]
[1680435057636,1.11754553,1819.0,1818.9,0.57619555]
[1680435058840,1.11754553,1819.0,1818.8,1.44048986]
[1680435059042,1.11754553,1819.0,1818.9,0.57619555]
[1680435059238,1.11754553,1819.0,1818.8,1.44048986]
[1680435059439,1.11754553,1819.0,1818.9,0.57619555]
[1680435059647,0.11754553,1819.0,1818.9,0.57619555]
[1680435063447,1.11754553,1819.0,1818.9,0.57619555]
[1680435064252,0.11754553,1819.0,1818.9,0.57619555]
[1680435065051,1.11754553,1819.0,1818.9,0.57619555]
[1680435066855,0.11754553,1819.0,1818.9,0.57619555]
[1680435068051,1.11754553,1819.0,1818.9,0.57619555]
[1680435068858,0.11754553,1819.0,1818.9,0.57619555]
[1680435069458,1.27002714,1819.0,1818.9,0.86429431]
[1680435069957,1.27002714,1819.0,1818.9,1.44092001]
[1680435071556,1.27002714,1819.0,1818.9,0.86429431]
[1680435075761,2.27002714,1819.0,1818.9,0.86429431]
[1680435076061,1.27002714,1819.0,1818.9,0.86429431]
[1680435076461,2.27002714,1819.0,1818.9,0.86429431]
[1680435085874,1.11754553,1819.0,1818.9,0.86429431]
[1680435086766,2.27049132,1819.0,1818.9,0.86429431]
[1680435087165,1.11754553,1819.0,1818.9,0.86429431]
[1680435087365,3.24153155,1819.0,1818.9,1.4414291]
[1680435087572,3.24153155,1819.0,1818.9,0.57713479]
[1680435087971,3.24153155,1819.0,1818.9,0.56952003]
[1680435088366,3.24153155,1819.0,1818.9,0.56240432]
[1680435088571,3.24153155,1819.0,1818.9,0.55499556]
[1680435088772,3.24153155,1819.0,1818.9,0.54819152]
[1680435089575,3.24153155,1819.0,1818.7,0.86429431]
[1680435089780,4.36012448,1818.9,1818.7,0.86429431]
[1680435089979,1.0,1818.8,1818.7,0.86429431]
[1680435090376,2.15232448,1818.8,1818.7,0.86429431]
[1680435091479,1.0,1818.8,1818.7,0.86429431]
[1680435095585,1.8638122,1818.8,1818.7,0.86429431]
[1680435095780,1.97780781,1818.8,1818.7,0.86429431]
[1680435096486,0.97780781,1818.8,1818.7,0.86429431]
[1680435099789,1.97780781,1818.8,1818.7,0.86429431]
[1680435101990,0.97780781,1818.8,1818.7,0.86429431]
[1680435103489,0.97780781,1818.8,1818.6,0.86429431]
[1680435104892,0.97780781,1818.8,1818.7,0.86429431]
[1680435105391,0.97780781,1818.8,1818.6,0.86429431]
[1680435107889,0.97780781,1818.8,1818.6,2.01668672]
[1680435108195,0.11399561,1818.8,1818.7,1.15239241]
[1680435108391,0.11399561,1818.8,1818.7,7.3102608]
[1680435108993,0.11399561,1818.8,1818.7,6.15786839]
[1680435109693,0.11399561,1818.8,1818.7,7.3102608]
[1680435136912,0.11399561,1818.8,1818.7,7.76176419]
[1680435138507,0.11399561,1818.8,1818.7,7.31097516]
[1680435138904,0.11399561,1818.8,1818.7,7.76177215]
[1680435139207,0.11399561,1818.8,1818.7,7.31097516]
[1680435142010,0.97780781,1818.8,1818.7,7.31097516]
[1680435143414,1.55431291,1818.8,1818.7,7.31097516]
[1680435147018,0.97780781,1818.8,1818.7,7.31097516]
[1680435148915,1.55443913,1818.8,1818.7,7.31097516]
[1680435149619,0.97780781,1818.8,1818.7,7.76210894]
[1680435150323,1.55450406,1818.8,1818.7,7.76210894]
[1680435150513,0.97780781,1818.8,1818.7,7.76210894]
[1680435151124,0.97780781,1818.8,1818.7,7.76211948]
[1680435151322,0.97780781,1818.8,1818.7,7.31097516]
[1680435153015,0.97780781,1818.8,1818.7,7.76218969]
[1680435162037,0.97780781,1818.8,1818.7,7.31097516]
[1680435162237,0.97780781,1818.8,1818.7,7.76199429]
[1680435162436,0.97780781,1818.8,1818.7,7.31097516]
[1680435167343,0.8638122,1818.8,1818.7,7.36816295]
[1680435168239,0.8638122,1818.8,1818.7,7.54111498]
[1680435168439,23.3638122,1818.8,1818.7,7.54111498]
[1680435180954,23.3638122,1818.8,1818.7,1.38324659]
[1680435183166,22.5,1818.8,1818.7,1.38324659]
[1680435183661,23.36554063,1818.8,1818.7,1.38324659]
[1680435184969,22.5,1818.8,1818.7,1.38324659]
[1680435185164,23.36557823,1818.8,1818.7,1.83451943]
[1680435192677,22.5,1818.8,1818.7,1.38324659]
[1680435194878,25.7078,1818.8,1818.7,1.38324659]
[1680435195179,26.86012448,1818.8,1818.7,1.38324659]
[1680435195585,25.7078,1818.8,1818.7,1.38324659]
[1680435195880,26.86012448,1818.8,1818.7,1.38324659]
[1680435201478,25.7078,1818.8,1818.7,0.23013982]
[1680435201683,27.14996221,1818.8,1818.7,0.23013982]
[1680435201880,27.14996221,1818.8,1818.6,0.86520002]
[1680435202086,2.15383374,1818.7,1818.6,0.86520002]
[1680435202590,24.65383374,1818.7,1818.6,0.86520002]
[1680435205496,23.5,1818.7,1818.6,0.86520002]
[1680435205790,24.65383374,1818.7,1818.6,0.86520002]
[1680435206595,23.5,1818.7,1818.6,0.86520002]
[1680435207494,24.65383374,1818.7,1818.6,0.86520002]
[1680435207797,23.5,1818.7,1818.5,0.86520002]
[1680435208095,1.44144747,1818.6,1818.5,0.86520002]
[1680435208487,23.94144747,1818.6,1818.5,0.86520002]
[1680435209494,23.07657899,1818.6,1818.5,0.86520002]
[1680435209895,23.94144747,1818.6,1818.5,0.86520002]
[1680435210896,23.36486848,1818.6,1818.5,0.86520002]
[1680435211792,23.94131378,1818.6,1818.5,0.86520002]
[1680435212800,23.36486848,1818.6,1818.5,0.86520002]
[1680435213001,23.94130372,1818.6,1818.5,0.86520002]
[1680435213198,23.94130372,1818.6,1818.5,0.94648788]
[1680435213399,23.36486848,1818.6,1818.5,0.94648788]
[1680435213702,23.94125866,1818.6,1818.5,0.94648788]
[1680435216997,23.36486848,1818.6,1818.5,0.94648788]
[1680435217601,23.94117681,1818.6,1818.5,1.52272643]
[1680435220902,26.57266848,1818.6,1818.5,0.65752641]
[1680435222000,26.86163374,1818.6,1818.5,0.08128786]
[1680435222508,26.86163374,1818.6,1818.3,0.57623855]
[1680435222704,4.64821376,1818.4,1818.3,0.57623855]
[1680435223109,4.07204826,1818.4,1818.3,0.57623855]
[1680435223407,4.6481688,1818.4,1818.3,0.57623855]
[1680435223610,3.78392054,1818.4,1818.3,0.57623855]
[1680435224011,31.38392054,1818.4,1818.3,0.57623855]
[1680435227909,31.38392054,1818.4,1818.2,1.44143857]
[1680435228111,1.0,1818.3,1818.2,0.57623855]
[1680435228312,1.0,1818.3,1818.2,1.44143857]
[1680435229511,1.0,1818.3,1818.2,0.57623855]
[1680435235118,1.57612054,1818.3,1818.1,0.57623855]
[1680435235720,27.6,1818.2,1818.1,0.57623855]
[1680435238316,27.6,1818.2,1818.0,1.44143857]
[1680435238522,27.6,1818.2,1818.0,0.57623855]
[1680435239025,27.6,1818.2,1818.0,1.44143857]
[1680435239527,27.6,1818.2,1818.0,0.57623855]
[1680435241535,27.6,1818.2,1818.0,1.44143857]
[1680435243134,27.6,1818.2,1818.1,0.62423273]
[1680435244027,31.38392054,1818.2,1818.1,0.04799418]
[1680435244228,27.6,1818.2,1818.1,0.62423273]
[1680435244430,27.6,1818.2,1818.1,0.04799418]
[1680435245128,28.17612054,1818.2,1818.1,0.04799418]
[1680435246935,31.38392054,1818.2,1818.1,0.04799418]
[1680435248534,30.8078,1818.2,1818.1,0.04799418]
[1680435252135,27.6,1818.2,1818.1,0.04799418]
[1680435252336,30.8078,1818.2,1818.1,0.04799418]
[1680435255543,31.38392054,1818.2,1818.1,0.04799418]
[1680435259747,31.38392054,1818.2,1818.1,0.62423273]
[1680435259941,31.38392054,1818.2,1818.1,0.04799418]
[1680435260347,31.38392054,1818.2,1818.1,0.62423273]
[1680435265655,31.67204826,1818.2,1818.1,0.62423273]
[1680435267556,31.67204826,1818.2,1818.1,0.9131942]
[1680435273058,31.67204826,1818.2,1818.1,0.90911994]
[1680435276764,30.8078,1818.2,1818.1,0.90911994]
[1680435277359,31.6729078,1818.2,1818.1,0.90911994]
[1680435277561,31.96163374,1818.2,1818.1,0.90911994]
[1680435277859,30.8078,1818.2,1818.1,0.90911994]
[1680435278160,31.96163374,1818.2,1818.1,0.90911994]
[1680435278962,30.8078,1818.2,1818.1,0.90911994]
[1680435279666,31.96163374,1818.2,1818.1,0.04391992]
[1680435281665,31.96163374,1818.2,1818.1,1.19557446]
[1680435283565,28.75383374,1818.2,1818.1,1.19557446]
[1680435294269,28.75383374,1818.2,1818.1,0.91000564]
[1680435298067,29.72427591,1818.2,1818.1,0.62125996]
[1680435298267,29.72427591,1818.2,1818.1,1.44342576]
[1680435298565,29.04216221,1818.2,1818.1,0.57734004]
[1680435298766,29.7242966,1818.2,1818.1,0.57734004]
[1680435302071,41.48181203,1818.2,1818.0,0.57734004]
[1680435302374,5.65013428,1818.1,1818.0,0.57734004]
[1680435302876,6.33229902,1818.1,1818.0,0.57734004]
[1680435303077,33.93229902,1818.1,1818.0,0.57734004]
[1680435303678,33.93229902,1818.1,1817.9,1.44342576]
[1680435303876,1.0,1818.0,1817.9,1.44342576]
[1680435304073,2.44233428,1818.0,1817.9,0.57734004]
[1680435304275,2.15290871,1818.0,1817.8,1.44342576]
[1680435304475,0.86464475,1817.9,1817.8,1.44342576]
[1680435306080,0.86464475,1817.9,1817.8,0.57734004]
[1680435306879,4.07244475,1817.9,1817.8,0.57734004]
[1680435307273,3.2078,1817.9,1817.7,1.44342576]
[1680435307474,0.86429046,1817.8,1817.7,1.44342576]
[1680435307874,0.86429046,1817.8,1817.7,0.57734004]
[1680435307875,0.57596352,1817.8,1817.7,0.57734004]
[1680435310882,0.57596352,1817.8,1817.6,1.44342576]
[1680435311087,3.2078,1817.7,1817.6,1.44342576]
[1680435311288,3.26008259,1817.7,1817.6,1.44342576]
[1680435311481,3.26008259,1817.7,1817.6,0.57734004]
[1680435313988,3.25764711,1817.7,1817.6,0.57734004]
[1680435318583,30.85764711,1817.7,1817.6,0.57734004]
[1680435318995,30.85764711,1817.7,1817.5,1.44342576]
[1680435319888,27.65228259,1817.7,1817.6,0.57734004]
[1680435326394,27.65228259,1817.7,1817.6,1.44342576]
[1680435326794,27.65228259,1817.7,1817.6,7.55338805]
[1680435327393,27.65228259,1817.7,1817.6,6.97604801]
[1680435328000,0.05228259,1817.7,1817.6,10.46941683]
[1680435328400,27.6,1817.9,1817.6,10.46941683]
[1680435328595,27.6,1817.9,1817.8,0.57570642]
[1680435336403,27.6,1817.9,1817.8,1.43926605]
[1680435337095,28.17596352,1817.9,1817.8,0.57570642]
[1680435338299,28.17596352,1817.9,1817.8,1.43926605]
[1680435338897,28.22146064,1817.9,1817.8,1.43926605]
[1680435340400,28.22146064,1817.9,1817.8,0.86355963]
[1680435341401,28.22146064,1817.9,1817.8,1.43999648]
[1680435342398,29.0857511,1817.9,1817.8,0.86355963]
[1680435344402,28.50978758,1817.9,1817.8,0.86355963]
[1680435350511,31.71758758,1817.9,1817.8,0.86355963]
[1680435367026,32.00620583,1817.9,1817.8,0.86355963]
[1680435378522,30.85329712,1817.9,1817.8,0.57726156]
[1680435380735,32.00673827,1817.9,1817.8,0.57726156]
[1680435384140,28.79893827,1817.9,1817.8,0.57726156]
[1680435384437,32.00673827,1817.9,1817.8,0.57726156]
[1680435389244,28.79893827,1817.9,1817.8,0.57726156]
[1680435389442,32.00673827,1817.9,1817.8,0.57726156]
[1680435397147,30.85329712,1817.9,1817.8,0.57726156]
[1680435401456,32.00638533,1817.9,1817.8,0.57726156]
[1680435407056,32.00638533,1817.9,1817.8,0.86355963]
[1680435434379,2.1245947,1817.9,1817.8,4.2078]
[1680435434584,0.57676914,1818.0,1817.8,6.27035752]
[1680435434779,1.44233428,1818.3,1817.9,1.93746902]
[1680435434987,1.44233428,1818.3,1818.2,0.57700684]
[1680435435288,1.44233428,1818.3,1818.1,1.57700684]
[1680435435478,1.44233428,1818.4,1818.1,2.4425171]
[1680435435685,1.44233428,1818.5,1818.2,0.57700684]
[1680435435989,1.44233428,1818.5,1818.2,6.82671934]
[1680435436191,1.44233428,1818.4,1818.2,6.82671934]
[1680435436490,1.44233428,1818.5,1818.2,6.82671934]
[1680435436686,2.12438372,1818.5,1818.2,6.82671934]
[1680435437396,2.12438372,1818.5,1818.2,6.2497125]
[1680435438088,1.44233428,1818.5,1818.2,10.03451934]
[1680435439491,0.68203643,1818.6,1818.2,9.4575125]
[1680435439492,1.44233428,1818.6,1818.2,9.4575125]
[1680435439693,2.12437249,1818.6,1818.2,9.4575125]
[1680435440298,25.8,1818.5,1818.2,9.4575125]
[1680435442196,25.8,1818.5,1818.3,0.1693343]
[1680435444304,25.8,1818.5,1818.3,0.16399851]
[1680435450509,25.8,1818.5,1818.4,5.92796995]
[1680435450709,25.8,1818.5,1818.4,6.09662706]
[1680435457813,3.2078,1818.7,1818.4,6.09662706]
[1680435458319,43.7078,1818.7,1818.4,6.09662706]
[1680435463323,3.2078,1818.7,1818.4,6.09662706]
[1680435463925,40.5,1818.6,1818.4,6.09662706]
[1680435465524,4.35835973,1818.7,1818.4,6.09662706]
[1680435469532,1.15055973,1818.7,1818.4,6.09662706]
[1680435469727,41.65055973,1818.8,1818.4,6.09662706]
[1680435470227,41.65055973,1818.8,1818.4,9.30442706]
[1680435471130,41.65055973,1818.8,1818.4,6.09662706]
[1680435472633,41.65055973,1818.8,1818.4,9.30442706]
[1680435474333,1.15055973,1818.7,1818.4,9.30442706]
[1680435476539,1.15055973,1818.7,1818.4,6.09662706]
[1680435477132,4.35835973,1818.7,1818.4,6.09662706]
[1680435477335,4.35835973,1818.7,1818.4,6.6736339]
[1680435479437,4.35835973,1818.7,1818.5,0.57700684]
[1680435479630,4.35835973,1818.7,1818.6,0.16862261]
[1680435479833,1.15055973,1818.7,1818.6,0.16862261]
[1680435480738,1.15055973,1818.7,1818.6,6.01827802]
[1680435492043,4.35835973,1818.7,1818.6,6.01827802]
[1680435497643,1.15055973,1818.7,1818.6,6.01827802]
[1680435498045,0.86471275,1818.7,1818.6,10.09158828]
[1680435498245,0.86471275,1818.7,1818.6,10.16371112]
[1680435503259,0.86471275,1818.7,1818.6,10.73975971]
[1680435503463,0.86471275,1818.7,1818.6,10.16371112]
[1680435504666,40.5,1818.8,1818.6,10.16371112]
[1680435504667,41.36471275,1818.8,1818.6,10.16371112]
[1680435504867,41.36471275,1818.8,1818.7,0.57599219]
[1680435505062,41.36471275,1818.8,1818.7,1.57599219]
[1680435505267,41.36471275,1818.8,1818.7,8.0195544]
[1680435505465,41.36471275,1818.8,1818.7,7.0195544]
[1680435506168,0.86471275,1818.8,1818.7,7.0195544]
[1680435515576,41.66471275,1818.9,1818.7,7.30907247]
[1680435515877,41.66471275,1818.9,1818.8,0.57576733]
[1680435516271,41.66471275,1818.9,1818.8,3.78356733]
[1680435518573,41.66471275,1818.9,1818.8,0.57576733]
[1680435518874,41.66471275,1818.9,1818.8,0.7258703]
[1680435519773,41.66471275,1818.9,1818.8,3.9336703]
[1680435520275,41.66471275,1818.9,1818.8,0.7258703]
[1680435520865,41.66471275,1818.9,1818.8,3.9336703]
[1680435522778,41.66471275,1818.9,1818.8,0.7258703]
[1680435523375,41.66471275,1818.9,1818.8,0.72371455]
[1680435524377,41.66471275,1818.9,1818.8,3.93151455]
[1680435526581,41.66471275,1818.9,1818.8,0.72371455]
[1680435528284,41.66471275,1818.9,1818.8,3.93151455]
[1680435528881,41.66471275,1818.9,1818.8,0.72371455]
[1680435529085,41.66471275,1818.9,1818.8,0.15010297]
[1680435529884,41.66471275,1818.9,1818.8,3.35790297]
[1680435530980,40.8,1818.9,1818.8,3.35790297]
[1680435535890,41.66471275,1818.9,1818.8,3.35790297]
[1680435536392,40.8,1818.9,1818.8,3.35790297]
[1680435536695,41.66471275,1818.9,1818.8,3.35790297]
[1680435538294,40.8,1818.9,1818.8,3.35790297]
[1680435538795,41.66471275,1818.9,1818.8,4.22341323]
[1680435551609,41.95055973,1818.9,1818.8,1.01561323]
[1680435552011,40.8,1818.9,1818.8,1.01561323]
[1680435552712,41.95055973,1818.9,1818.8,1.01561323]
[1680435560622,41.95055973,1818.9,1818.8,0.15010297]
[1680435562223,41.95055973,1818.9,1818.8,1.01522075]
[1680435562721,41.95055973,1818.9,1818.8,0.15010297]
[1680435564526,1.15055973,1818.9,1818.8,0.15010297]
[1680435564722,1.15055973,1818.9,1818.8,1.30411664]
[1680435564927,1.15055973,1818.9,1818.8,0.15010297]
[1680435565528,41.95055973,1818.9,1818.8,0.15010297]
[1680435566127,41.95055973,1818.9,1818.8,1.30411664]
[1680435567227,41.95055973,1818.9,1818.8,0.15010297]
[1680435574630,41.95055973,1818.9,1818.8,1.30411664]
[1680435575138,41.95055973,1818.9,1818.8,0.15010297]
[1680435580937,41.95055973,1818.9,1818.8,1.0144112]
[1680435581142,41.95055973,1818.9,1818.8,0.15010297]
[1680435581838,41.95055973,1818.9,1818.8,1.30411664]
[1680435582432,41.95055973,1818.9,1818.8,0.15010297]
[1680435585240,41.95055973,1818.9,1818.8,1.30411664]
[1680435585636,41.95055973,1818.9,1818.8,0.15010297]
[1680435585842,41.95055973,1818.9,1818.8,1.30411664]
[1680435586043,41.95055973,1818.9,1818.8,0.15010297]
[1680435586946,41.95055973,1818.9,1818.8,1.30411664]
[1680435590248,41.95055973,1818.9,1818.8,0.15010297]
[1680435590448,41.95055973,1818.9,1818.8,1.30411664]
[1680435590747,41.95055973,1818.9,1818.8,0.15010297]
[1680435591048,41.95055973,1818.9,1818.8,1.30411664]
[1680435598952,41.95055973,1818.9,1818.8,7.44936309]
[1680435618962,41.95422735,1818.9,1818.8,7.44936309]
[1680435631575,40.8,1818.9,1818.8,7.44936309]
[1680435632083,41.95422735,1818.9,1818.8,7.44936309]
[1680435632382,40.8,1818.9,1818.8,7.44936309]
[1680435642902,41.66556738,1818.9,1818.8,7.44936309]
[1680435643091,41.66556738,1818.9,1818.8,7.95627638]
[1680435643486,41.66556738,1818.9,1818.8,7.44936309]
[1680435643899,41.66556738,1818.9,1818.8,7.95625491]
[1680435644395,41.66556738,1818.9,1818.8,7.9562657]
[1680435645298,41.66556738,1818.9,1818.8,7.44936309]
[1680435659411,40.8,1818.9,1818.8,7.44936309]
[1680435660107,41.66553647,1818.9,1818.8,7.95628682]
[1680435661103,0.86553647,1818.9,1818.8,7.95628682]
[1680435685030,0.86553647,1818.9,1818.8,7.95635167]
[1680435692137,0.57696382,1818.9,1818.8,8.24485634]
[1680435692530,1.44250029,1818.9,1818.8,8.24485634]
[1680435693534,0.57696382,1818.9,1818.8,8.24485634]
[1680435693731,1.44250029,1818.9,1818.8,8.24485634]
[1680435693933,0.86553647,1818.9,1818.8,7.95451645]
[1680435694136,0.86553647,1818.9,1818.8,6.802338]
[1680435694342,0.86553647,1818.9,1818.8,7.95450928]
[1680435694532,0.57692427,1818.9,1818.8,8.24485634]
[1680435696439,1.44246074,1818.9,1818.8,6.802338]
[1680435696943,0.57692427,1818.9,1818.8,6.802338]
[1680435701445,0.57692427,1818.9,1818.8,8.24485634]
[1680435701649,0.57692427,1818.9,1818.8,6.802338]
[1680435702449,1.44246074,1818.9,1818.8,7.95436636]
[1680435702747,1.44246074,1818.9,1818.8,6.802338]
[1680435703345,1.44246074,1818.9,1818.8,7.95436157]
[1680435703542,1.44246074,1818.9,1818.8,6.802338]
[1680435704537,1.44246074,1818.9,1818.8,7.95438491]
[1680435705551,1.44246074,1818.9,1818.8,6.802338]
[1680435709148,1.44246074,1818.9,1818.8,10.010138]
[1680435710661,0.86553647,1818.9,1818.8,10.010138]
[1680435710858,1.44244915,1818.9,1818.8,10.010138]
[1680435715466,0.86553647,1818.9,1818.8,10.010138]
[1680435715665,0.86553647,1818.9,1818.8,11.16234226]
[1680435716863,0.86553647,1818.9,1818.8,10.010138]
[1680435717065,1.44246109,1818.9,1818.8,10.010138]
[1680435717464,2.01939146,1818.9,1818.8,10.010138]
[1680435717764,1.44246684,1818.9,1818.8,10.010138]
[1680435718364,0.57693037,1818.9,1818.8,11.45265634]
[1680435731778,41.37693037,1818.9,1818.8,11.45265634]
[1680435737781,0.57693037,1818.9,1818.8,11.45265634]
[1680435747489,42.24246684,1819.0,1818.8,11.45265634]
[1680435747689,42.24246684,1819.0,1818.9,1.65860396]
[1680435747882,42.24246684,1819.0,1818.9,1.65860143]
[1680435748082,42.24246684,1819.0,1818.9,7.93645065]
[1680435752496,42.24236242,1819.0,1818.9,7.93645065]
[1680435752788,1.44236242,1819.0,1818.9,7.93645065]
[1680435752993,1.44236242,1819.0,1818.9,7.9364037]
[1680435753397,0.57682595,1819.0,1818.9,7.9364037]
[1680435753900,1.44236242,1819.0,1818.9,7.9364037]
[1680435754099,0.57682595,1819.0,1818.9,7.9364037]
[1680435755895,0.57682595,1819.0,1818.9,7.93636405]
[1680435757599,0.57682595,1819.0,1818.9,6.7848378]
[1680435758398,0.57682595,1819.0,1818.9,7.93637221]
[1680435758900,0.57682595,1819.0,1818.9,6.7848378]
[1680435759099,0.57682595,1819.0,1818.9,7.93635448]
[1680435759902,0.57682595,1819.0,1818.9,6.7848378]
[1680435760104,0.57682595,1819.0,1818.9,7.93635805]
[1680435760702,0.57682595,1819.0,1818.9,6.7848378]
[1680435768999,41.37682595,1819.0,1818.9,6.7848378]
[1680435770007,41.66541466,1819.0,1818.9,1.80564872]
[1680435770208,42.24226788,1819.0,1818.9,1.80564872]
[1680435770903,42.24226953,1819.0,1818.9,1.80564872]
[1680435773703,42.24228723,1819.0,1818.9,1.80564872]
[1680435774310,41.66541466,1819.0,1818.9,1.80564872]
[1680435774911,41.36939349,1819.0,1818.9,2.09661091]
[1680435775116,0.57684422,1819.0,1818.9,2.09661091]
[1680435775603,0.57684422,1819.0,1818.9,0.65409257]
[1680435776113,41.37684422,1819.0,1818.9,0.65409257]
[1680435776509,42.24225888,1819.0,1818.9,0.65409257]
[1680435780511,41.66541466,1819.0,1818.9,0.65409257]
[1680435793318,41.66541466,1819.0,1818.9,2.09661091]
[1680435798722,41.66541466,1819.0,1818.9,0.65409257]
[1680435800219,41.66541466,1819.0,1818.9,2.09661091]
[1680435800418,41.66541466,1819.0,1818.9,0.65409257]
[1680435800723,41.66541466,1819.0,1818.9,2.09661091]
[1680435803326,41.66541466,1819.0,1818.9,0.65409257]
[1680435804330,41.66541466,1819.0,1818.9,2.09661091]
[1680435804534,41.66541466,1819.0,1818.9,0.65409257]
[1680435804826,41.66541466,1819.0,1818.9,2.09661091]
[1680435805627,41.66541466,1819.0,1818.9,0.65409257]
[1680435807532,41.66541466,1819.0,1818.9,2.09661091]
[1680435832347,41.37708794,1819.0,1818.9,2.09661091]
[1680435832548,42.2425026,1819.0,1818.9,2.09661091]
[1680435833545,41.37708794,1819.0,1818.9,2.09661091]
[1680435852166,42.2425026,1819.0,1818.9,0.65409257]
[1680435858875,42.2425026,1819.0,1818.9,2.09661091]
[1680435864976,41.37708794,1819.0,1818.9,2.09661091]
[1680435873184,42.2425026,1819.0,1818.9,2.09661091]
[1680435873388,41.37708794,1819.0,1818.9,2.09661091]
[1680435873692,42.2425026,1819.0,1818.9,2.09661091]
[1680435883095,41.37708794,1819.0,1818.9,2.09661091]
[1680435883592,42.2425026,1819.0,1818.9,2.09661091]
[1680435884999,41.37708794,1819.0,1818.9,2.09661091]
[1680435896405,40.8,1819.0,1818.9,0.65409257]
[1680435897105,40.8,1819.0,1818.9,2.09333352]
[1680435897303,41.37708794,1819.0,1818.9,2.09333352]
[1680435906501,40.8,1819.0,1818.9,2.09333352]
[1680435923017,41.37708794,1819.0,1818.9,2.09333352]
[1680435951555,41.37708794,1819.0,1818.9,0.65409257]
[1680435956161,40.8,1819.0,1818.9,0.65409257]
[1680435957460,41.37708794,1819.0,1818.9,0.65409257]
[1680435957855,41.37708794,1819.0,1818.9,2.0934015]